fUSD/lending_fUSD_20251206
["ID","MTS","AMOUNT","RATE_DAILY","PERIOD"]
[396566247,1765053049243,-500.0,0.00016712,2]
[396566248,1765053049254,-2135.96,0.00016712,2]
[396566249,1765053049263,-500.0,0.00016712,2]
[396566250,1765053049272,-500.0,0.00016712,2]
[396566251,1765053049282,-1654.54,0.00016712,2]
[396566252,1765053049291,-1405.97,0.00016712,2]
[396566253,1765053049304,-500.0,0.00016712,2]
[396566254,1765053049314,-500.0,0.00016712,2]
[396566255,1765053049324,-500.0,0.00016712,2]
[396566256,1765053049333,-500.0,0.00016712,2]
[396566257,1765053049343,-2673.85,0.00016712,2]
[396566258,1765053049352,-500.0,0.00016712,2]
[396566259,1765053049361,-500.0,0.00016712,2]
[396566260,1765053049371,-500.0,0.00016712,2]
[396566261,1765053049380,-500.0,0.00016712,2]
[396566262,1765053049390,-512.78404741,0.00016712,2]
[396566263,1765053049400,-500.0,0.00016712,2]
[396566264,1765053049409,-522.39,0.00016712,2]
[396566265,1765053049418,-2362.71,0.00016712,2]
[396566266,1765053049428,-500.0,0.00016712,2]
[396566267,1765053049437,-504.39199229,0.00016712,2]
[396566268,1765053049446,-500.0,0.00016712,2]
[396566269,1765053049456,-151.0,0.00016712,2]
[396566270,1765053049469,-171.677986,0.00016712,2]
[396566271,1765053049478,-500.0,0.00016712,2]
[396566272,1765053049488,-151.0,0.00016712,2]
[396566273,1765053049497,-500.0,0.00016712,2]
[396566274,1765053049507,-500.0,0.00016712,2]
[396566275,1765053049516,-500.0,0.00016712,2]
[396566276,1765053049525,-151.0,0.00016712,2]
[396566277,1765053049535,-500.0,0.00016712,2]
[396566278,1765053049544,-500.0,0.00016712,2]
[396566279,1765053049553,-919.36,0.00016712,2]
[396566280,1765053049563,-500.0,0.00016712,2]
[396566281,1765053049572,-500.0,0.00016712,2]
[396566282,1765053049582,-1896.21,0.00016712,2]
[396566283,1765053049591,-500.0,0.00016712,2]
[396566284,1765053049601,-2230.84,0.00016712,2]
[396566285,1765053049611,-206.71466343,0.00016712,2]
[396566286,1765053049620,-500.0,0.00016712,2]
[396566287,1765053049630,-500.0,0.00016712,2]
[396566288,1765053049640,-500.0,0.00016712,2]
[396566289,1765053049650,-500.0,0.00016712,2]
[396566290,1765053049662,-1925.46,0.00016712,2]
[396566291,1765053049671,-2272.31,0.00016712,2]
[396566292,1765053049681,-500.0,0.00016712,2]
[396566293,1765053049691,-500.0,0.00016712,2]
[396566294,1765053049701,-500.0,0.00016712,2]
[396566295,1765053049711,-609.99,0.00016712,2]
[396566296,1765053049720,-566.2751355,0.00016712,2]
[396566297,1765053049730,-500.0,0.00016712,2]
[396566298,1765053049739,-500.0,0.00016712,2]
[396566299,1765053049748,-500.0,0.00016712,2]
[396566300,1765053049758,-500.0,0.00016712,2]
[396566301,1765053049769,-2100.02,0.00016712,2]
[396566302,1765053049779,-500.0,0.00016712,2]
[396566303,1765053049788,-500.0,0.00016712,2]
[396566304,1765053049798,-646.65,0.00016712,2]
[396566305,1765053049807,-500.0,0.00016712,2]
[396566306,1765053049817,-2417.66,0.00016712,2]
[396566307,1765053049826,-1764.36,0.00016712,2]
[396566308,1765053049836,-500.0,0.00016712,2]
[396566309,1765053049845,-1607.63,0.00016712,2]
[396566310,1765053049859,-151.0,0.00016712,2]
[396566311,1765053049868,-500.0,0.00016712,2]
[396566312,1765053049878,-500.0,0.00016712,2]
[396566313,1765053049887,-151.0,0.00016712,2]
[396566314,1765053049896,-151.0,0.00016712,2]
[396566315,1765053049905,-3641.4,0.00016712,2]
[396566316,1765053049915,-197.471122,0.00016712,2]
[396566317,1765053049924,-500.0,0.00016712,2]
[396566318,1765053049933,-500.0,0.00016712,2]
[396566319,1765053049942,-151.0,0.00016712,2]
[396566320,1765053049951,-151.0,0.00016712,2]
[396566321,1765053049960,-500.0,0.00016712,2]
[396566322,1765053049970,-500.0,0.00016712,2]
[396566323,1765053049980,-500.0,0.00016712,2]
[396566324,1765053049990,-500.36,0.00016712,2]
[396566325,1765053049999,-500.0,0.00016712,2]
[396566326,1765053050009,-1994.68,0.00016712,2]
[396566327,1765053050018,-500.0,0.00016712,2]
[396566328,1765053050029,-500.0,0.00016712,2]
[396566329,1765053050039,-500.0,0.00016712,2]
[396566330,1765053050048,-500.0,0.00016712,2]
[396566331,1765053050058,-985.782157,0.00016712,2]
[396566332,1765053050068,-985.782157,0.00016712,2]
[396566333,1765053050077,-985.782157,0.00016712,2]
[396566334,1765053050087,-1916.83,0.00016712,2]
[396566335,1765053050096,-985.782157,0.00016712,2]
[396566336,1765053050105,-500.0,0.00016712,2]
[396566337,1765053050116,-500.0,0.00016712,2]
[396566338,1765053050125,-418.98496899,0.00016712,2]
[396566339,1765053050134,-500.0,0.00016712,2]
[396566340,1765053050144,-500.0,0.00016712,2]
[396566341,1765053050153,-500.0,0.00016712,2]
[396566342,1765053050163,-500.0,0.00016712,2]
[396566343,1765053050172,-500.0,0.00016712,2]
[396566344,1765053050181,-1749.45,0.00016712,2]
[396566345,1765053050190,-151.0,0.00016712,2]
[396566346,1765053050200,-151.0,0.00016712,2]
[396566347,1765053050210,-500.0,0.00016712,2]
[396566348,1765053050219,-2266.54,0.00016712,2]
[396566349,1765053050228,-500.0,0.00016712,2]
[396566350,1765053050237,-151.0,0.00016712,2]
[396566351,1765053050247,-500.0,0.00016712,2]
[396566352,1765053050256,-500.0,0.00016712,2]
[396566353,1765053050265,-160.16004702,0.00016712,2]
[396566354,1765053050275,-742.21,0.00016712,2]
[396566355,1765053050284,-500.0,0.00016712,2]
[396566356,1765053050293,-151.0,0.00016712,2]
[396566357,1765053050303,-151.0,0.00016712,2]
[396566358,1765053050312,-413.86168,0.00016712,2]
[396566359,1765053050322,-2216.92,0.00016712,2]
[396566360,1765053050335,-151.0,0.00016712,2]
[396566361,1765053050344,-413.86168,0.00016712,2]
[396566362,1765053050353,-413.86168,0.00016712,2]
[396566363,1765053050362,-151.0,0.00016712,2]
[396566364,1765053050372,-151.0,0.00016712,2]
[396566365,1765053050382,-413.86168,0.00016712,2]
[396566366,1765053050392,-525.0,0.00016712,2]
[396566367,1765053050401,-151.0,0.00016712,2]
[396566368,1765053050410,-500.0,0.00016712,2]
[396566369,1765053050419,-500.0,0.00016712,2]
[396566370,1765053050428,-500.0,0.00016712,2]
[396566371,1765053050437,-502.27831511,0.00016712,2]
[396566372,1765053050448,-1954.53,0.00016712,2]
[396566373,1765053050457,-500.0,0.00016712,2]
[396566374,1765053050467,-500.0,0.00016712,2]
[396566375,1765053050477,-1664.1,0.00016712,2]
[396566376,1765053050488,-531.77,0.00016712,2]
[396566377,1765053050497,-663.89,0.00016712,2]
[396566378,1765053050506,-500.0,0.00016712,2]
[396566379,1765053050515,-500.0,0.00016712,2]
[396566380,1765053050525,-500.0,0.00016712,2]
[396566381,1765053050535,-500.0,0.00016712,2]
[396566382,1765053050545,-206.612132,0.00016712,2]
[396566383,1765053050555,-408.64552003,0.00016712,2]
[396566384,1765053050564,-500.0,0.00016712,2]
[396566385,1765053050574,-2481.04,0.00016712,2]
[396566386,1765053050584,-1036.83,0.00016712,2]
[396566387,1765053050594,-563.49,0.00016712,2]
[396566388,1765053050603,-500.0,0.00016712,2]
[396566389,1765053050614,-500.0,0.00016712,2]
[396566390,1765053050625,-734.26,0.00016712,2]
[396566391,1765053050635,-500.0,0.00016712,2]
[396566392,1765053050644,-151.0,0.00016712,2]
[396566393,1765053050654,-151.0,0.00016712,2]
[396566394,1765053050668,-2002.13,0.00016712,2]
[396566395,1765053050677,-900.12,0.00016712,2]
[396566396,1765053050688,-2229.33,0.00016712,2]
[396566397,1765053050698,-151.0,0.00016712,2]
[396566398,1765053050710,-500.0,0.00016712,2]
[396566399,1765053050719,-500.0,0.00016712,2]
[396566400,1765053050729,-151.0,0.00016712,2]
[396566401,1765053050739,-500.0,0.00016712,2]
[396566402,1765053050750,-151.0,0.00016712,2]
[396566403,1765053050759,-151.0,0.00016712,2]
[396566404,1765053050769,-900.71,0.00016712,2]
[396566405,1765053050779,-151.0,0.00016712,2]
[396566406,1765053050789,-500.0,0.00016712,2]
[396566407,1765053050798,-151.0,0.00016712,2]
[396566408,1765053050807,-151.0,0.00016712,2]
[396566409,1765053050816,-151.0,0.00016712,2]
[396566410,1765053050985,-151.0,0.00016712,2]
[396566411,1765053051007,-2192.27,0.00016712,2]
[396566412,1765053051018,-180.28045012,0.00016712,2]
[396566413,1765053051027,-500.0,0.00016712,2]
[396566414,1765053051036,-500.0,0.00016712,2]
[396566415,1765053051047,-151.0,0.00016712,2]
[396566416,1765053051057,-547.66,0.00016712,2]
[396566417,1765053051066,-500.0,0.00016712,2]
[396566418,1765053051075,-361.10832,0.00016712,2]
[396566419,1765053051086,-500.0,0.00016712,2]
[396566420,1765053051097,-1027.71,0.00016712,2]
[396566421,1765053051106,-361.10832,0.00016712,2]
[396566422,1765053051115,-361.10832,0.00016712,2]
[396566423,1765053051125,-1996.86,0.00016712,2]
[396566424,1765053051135,-361.10832,0.00016712,2]
[396566425,1765053051144,-500.0,0.00016712,2]
[396566426,1765053051154,-246.78496956,0.00016712,2]
[396566427,1765053051165,-1246.59,0.00016712,2]
[396566428,1765053051174,-151.0,0.00016712,2]
[396566429,1765053051184,-151.0,0.00016712,2]
[396566430,1765053051193,-500.0,0.00016712,2]
[396566431,1765053051203,-500.0,0.00016712,2]
[396566432,1765053051214,-163.22272,0.00016712,2]
[396566433,1765053051223,-151.0,0.00016712,2]
[396566434,1765053051232,-500.0,0.00016712,2]
[396566435,1765053051242,-989.5,0.00016712,2]
[396566436,1765053051251,-171.141905,0.00016712,2]
[396566437,1765053051261,-500.0,0.00016712,2]
[396566438,1765053051270,-151.0,0.00016712,2]
[396566439,1765053051280,-330.793777,0.00016712,2]
[396566440,1765053051291,-186.616004,0.00016712,2]
[396566441,1765053051301,-240.572356,0.00016712,2]
[396566442,1765053051311,-330.793777,0.00016712,2]
[396566443,1765053051321,-500.0,0.00016712,2]
[396566444,1765053051330,-240.572356,0.00016712,2]
[396566445,1765053051339,-330.793777,0.00016712,2]
[396566446,1765053051349,-2550.27,0.00016712,2]
[396566447,1765053051359,-240.572356,0.00016712,2]
[396566448,1765053051368,-330.793777,0.00016712,2]
[396566449,1765053051378,-500.0,0.00016712,2]
[396566450,1765053051387,-240.572356,0.00016712,2]
[396566451,1765053051397,-500.0,0.00016712,2]
[396566452,1765053051406,-500.0,0.00016712,2]
[396566453,1765053051416,-500.0,0.00016712,2]
[396566454,1765053051426,-500.0,0.00016712,2]
[396566455,1765053051435,-500.0,0.00016712,2]
[396566456,1765053051444,-500.0,0.00016712,2]
[396566457,1765053051453,-500.0,0.00016712,2]
[396566458,1765053051463,-2017.78,0.00016712,2]
[396566459,1765053051472,-500.0,0.00016712,2]
[396566460,1765053051481,-500.0,0.00016712,2]
[396566461,1765053051491,-4054.77,0.00016712,2]
[396566462,1765053051501,-500.0,0.00016712,2]
[396566463,1765053051510,-500.0,0.00016712,2]
[396566464,1765053051520,-3712.83,0.00016712,2]
[396566465,1765053051530,-500.0,0.00016712,2]
[396566466,1765053051539,-2003.43,0.00016712,2]
[396566467,1765053051548,-2237.39,0.00016712,2]
[396566468,1765053051558,-500.0,0.00016712,2]
[396566469,1765053051567,-500.0,0.00016712,2]
[396566470,1765053051577,-346.25,0.00016712,2]
[396566471,1765053051586,-500.0,0.00016712,2]
[396566472,1765053051596,-500.0,0.00016712,2]
[396566473,1765053051605,-500.0,0.00016712,2]
[396566474,1765053051615,-1604.07,0.00016712,2]
[396566475,1765053051624,-500.0,0.00016712,2]
[396566476,1765053051634,-656.68,0.00016712,2]
[396566477,1765053051644,-500.0,0.00016712,2]
[396566478,1765053051654,-500.0,0.00016712,2]
[396566479,1765053051666,-951.06,0.00016712,2]
[396566480,1765053051676,-500.0,0.00016712,2]
[396566481,1765053051685,-2297.56,0.00016712,2]
[396566482,1765053051694,-2160.85,0.00016712,2]
[396566483,1765053051703,-500.0,0.00016712,2]
[396566484,1765053051713,-500.0,0.00016712,2]
[396566485,1765053051722,-6368.21,0.00016712,2]
[396566486,1765053051731,-2106.9,0.00016712,2]
[396566487,1765053051741,-500.0,0.00016712,2]
[396566488,1765053051751,-151.0,0.00016712,2]
[396566489,1765053051759,-968.1,0.00016712,2]
[396566490,1765053051770,-151.0,0.00016712,2]
[396566491,1765053051779,-573.04,0.00016712,2]
[396566492,1765053051788,-7410.18,0.00016712,2]
[396566493,1765053051798,-151.0,0.00016712,2]
[396566494,1765053051807,-151.0,0.00016712,2]
[396566495,1765053051817,-153.420936,0.00016712,2]
[396566496,1765053051826,-500.0,0.00016712,2]
[396566497,1765053051835,-863.26,0.00016712,2]
[396566498,1765053051844,-500.0,0.00016712,2]
[396566499,1765053051853,-500.0,0.00016712,2]
[396566500,1765053051863,-500.0,0.00016712,2]
[396566501,1765053051873,-500.0,0.00016712,2]
[396566502,1765053051882,-1734.77,0.00016712,2]
[396566503,1765053051892,-511.53,0.00016712,2]
[396566504,1765053051901,-1629.82,0.00016712,2]
[396566505,1765053051911,-1848.11,0.00016712,2]
[396566506,1765053051920,-500.0,0.00016712,2]
[396566507,1765053051929,-2485.09,0.00016712,2]
[396566508,1765053051939,-500.0,0.00016712,2]
[396566509,1765053051948,-1828.52,0.00016712,2]
[396566510,1765053051957,-500.0,0.00016712,2]
[396566511,1765053051966,-500.0,0.00016712,2]
[396566512,1765053051975,-2016.56,0.00016712,2]
[396566513,1765053051984,-2140.41,0.00016712,2]
[396566514,1765053051994,-500.0,0.00016712,2]
[396566515,1765053052004,-500.0,0.00016712,2]
[396566516,1765053052013,-1827.81,0.00016712,2]
[396566517,1765053052022,-1053.63,0.00016712,2]
[396566518,1765053052031,-500.0,0.00016712,2]
[396566519,1765053052040,-500.0,0.00016712,2]
[396566520,1765053052050,-1000.0,0.00016712,2]
[396566521,1765053052059,-1928.15,0.00016712,2]
[396566522,1765053052068,-500.0,0.00016712,2]
[396566523,1765053052077,-2019.67,0.00016712,2]
[396566524,1765053052087,-635.3,0.00016712,2]
[396566525,1765053052096,-3251.73,0.00016712,2]
[396566526,1765053052105,-1065.92,0.00016712,2]
[396566527,1765053052114,-500.0,0.00016712,2]
[396566528,1765053052124,-500.0,0.00016712,2]
[396566529,1765053052133,-578.35,0.00016712,2]
[396566530,1765053052142,-1880.2,0.00016712,2]
[396566531,1765053052152,-500.0,0.00016712,2]
[396566532,1765053052162,-7856.9,0.00016712,2]
[396566533,1765053052172,-500.0,0.00016712,2]
[396566534,1765053052181,-500.0,0.00016712,2]
[396566535,1765053052192,-500.0,0.00016712,2]
[396566536,1765053052201,-685.82,0.00016712,2]
[396566537,1765053052213,-1644.07,0.00016712,2]
[396566538,1765053052222,-2248.33,0.00016712,2]
[396566539,1765053052232,-2331.37,0.00016712,2]
[396566540,1765053052242,-1023.38,0.00016712,2]
[396566541,1765053052251,-500.0,0.00016712,2]
[396566542,1765053052262,-500.0,0.00016712,2]
[396566543,1765053052271,-500.0,0.00016712,2]
[396566544,1765053052280,-500.0,0.00016712,2]
[396566545,1765053052290,-151.0,0.00016712,2]
[396566546,1765053052299,-500.0,0.00016712,2]
[396566547,1765053052309,-666.63,0.00016712,2]
[396566548,1765053052320,-766.45,0.00016712,2]
[396566549,1765053052330,-543.17,0.00016712,2]
[396566550,1765053052339,-500.0,0.00016712,2]
[396566551,1765053052349,-537.76,0.00016712,2]
[396566552,1765053052359,-500.0,0.00016712,2]
[396566553,1765053052369,-1965.06,0.00016712,2]
[396566554,1765053052378,-500.0,0.00016712,2]
[396566555,1765053052387,-500.0,0.00016712,2]
[396566556,1765053052397,-2173.4,0.00016712,2]
[396566557,1765053052406,-500.0,0.00016712,2]
[396566558,1765053052415,-151.0,0.00016712,2]
[396566559,1765053052425,-300.0,0.00016712,2]
[396566560,1765053052434,-500.0,0.00016712,2]
[396566561,1765053052443,-2624.62,0.00016712,2]
[396566562,1765053052452,-500.0,0.00016712,2]
[396566563,1765053052462,-500.0,0.00016712,2]
[396566564,1765053052472,-1091.85,0.00016712,2]
[396566565,1765053052482,-1957.3,0.00016712,2]
[396566566,1765053052492,-500.0,0.00016712,2]
[396566567,1765053052501,-500.0,0.00016712,2]
[396566568,1765053052511,-500.0,0.00016712,2]
[396566569,1765053052523,-1403.68,0.00016712,2]
[396566570,1765053052532,-2040.8,0.00016712,2]
[396566571,1765053052542,-500.0,0.00016712,2]
[396566572,1765053052552,-500.0,0.00016712,2]
[396566573,1765053052562,-500.0,0.00016712,2]
[396566574,1765053052573,-500.0,0.00016712,2]
[396566575,1765053052583,-500.0,0.00016712,2]
[396566576,1765053052593,-500.0,0.00016712,2]
[396566577,1765053052604,-7284.63,0.00016712,2]
[396566578,1765053052614,-516.58,0.00016712,2]
[396566579,1765053052627,-500.0,0.00016712,2]
[396566580,1765053052637,-500.0,0.00016712,2]
[396566581,1765053052646,-2119.63,0.00016712,2]
[396566582,1765053052657,-500.0,0.00016712,2]
[396566583,1765053052670,-500.0,0.00016712,2]
[396566584,1765053052679,-910.53,0.00016712,2]
[396566585,1765053052689,-500.0,0.00016712,2]
[396566586,1765053052702,-713.28,0.00016712,2]
[396566587,1765053052712,-580.24,0.00016712,2]
[396566588,1765053052721,-500.0,0.00016712,2]
[396566589,1765053052730,-549.29,0.00016712,2]
[396566590,1765053052742,-500.0,0.00016712,2]
[396566591,1765053052751,-2523.07,0.00016712,2]
[396566592,1765053052761,-500.0,0.00016712,2]
[396566593,1765053052771,-658.41,0.00016712,2]
[396566594,1765053052781,-697.4,0.00016712,2]
[396566595,1765053052790,-1957.56,0.00016712,2]
[396566596,1765053052799,-2999.43,0.00016712,2]
[396566597,1765053052809,-404.06860473,0.00016712,2]
[396566598,1765053053712,-341.27156905,0.000159,2]
[396566599,1765053053722,-1413.1654805,0.00016238,2]
[396566600,1765053053731,-500.0,0.00016438,2]
[396566601,1765053053741,-1362.66,0.00016438,2]
[396566602,1765053053751,-500.0,0.00016438,2]
[396566603,1765053053761,-1605.0,0.00016601,2]
[396566604,1765053053770,-95.93139527,0.00016712,2]
[396566605,1765053053780,-500.0,0.00016712,2]
[396566606,1765053053790,-500.0,0.00016712,2]
[396566607,1765053053800,-500.0,0.00016712,2]
[396566608,1765053053809,-500.0,0.00016712,2]
[396566609,1765053053819,-500.0,0.00016712,2]
[396566610,1765053053828,-586.89668824,0.00016712,2]
[396566611,1765053053844,-1434.6,0.00016712,2]
[396566612,1765053053856,-265.695,0.00016712,2]
[396566613,1765053054232,-281.40831176,0.00016712,2]
[396566614,1765053054243,-629.89207824,0.00016712,2]
[396566615,1765053055072,-432.83392366,0.00016312,2]
[396566616,1765053055103,-980.33155684,0.00016312,2]
[396566617,1765053055113,-1369.76900028,0.00016712,2]
[396566624,1765053107721,6325.0,0.00025,120]
[396566625,1765053114453,500.0,0.0001306,2]
[396566901,1765054159367,-185.200438,0.00015211,2]
[396566902,1765054159393,-150.0,0.00015288,2]
[396566903,1765054159420,-150.0,0.00015288,2]
[396566904,1765054159450,-500.0,0.00015295,2]
[396566905,1765054159477,-500.0,0.00015295,2]
[396566906,1765054159505,-500.0,0.00015295,2]
[396566907,1765054159533,-500.0,0.00015295,2]
[396566908,1765054159558,-349.35004595,0.00015295,2]
[396566909,1765054159583,-500.0,0.00015295,2]
[396566910,1765054159609,-500.0,0.00015295,2]
[396566911,1765054159635,-500.0,0.00015295,2]
[396566912,1765054159662,-500.0,0.00015295,2]
[396566913,1765054159691,-165.44951605,0.00015295,2]
[396566950,1765054232166,-1200.0,0.00015294,2]
[396566954,1765054232176,-334.55048395,0.00015295,2]
[396566957,1765054232185,-500.0,0.00015295,2]
[396566960,1765054232194,-500.0,0.00015295,2]
[396566964,1765054232203,-500.0,0.00015295,2]
[396566966,1765054232212,-500.0,0.00015295,2]
[396566967,1765054232222,-502.05585245,0.00015295,2]
[396566968,1765054232232,-500.0,0.00015295,2]
[396566970,1765054232241,-196.55943663,0.00015295,2]
[396566971,1765054232251,-500.0,0.00015295,2]
[396566972,1765054232261,-500.0,0.00015295,2]
[396566974,1765054232270,-500.0,0.00015295,2]
[396566975,1765054232279,-500.0,0.00015295,2]
[396566976,1765054232288,-500.0,0.00015295,2]
[396566978,1765054232297,-500.0,0.00015295,2]
[396566979,1765054232306,-500.0,0.00015295,2]
[396566980,1765054232319,-500.0,0.00015295,2]
[396566982,1765054232332,-500.0,0.00015295,2]
[396566983,1765054232341,-500.0,0.00015295,2]
[396566984,1765054232351,-500.0,0.00015295,2]
[396566986,1765054232363,-250.0,0.00015295,2]
[396566987,1765054232372,-500.0,0.00015295,2]
[396566988,1765054232382,-500.0,0.00015295,2]
[396566989,1765054232391,-277.0,0.00015295,2]
[396566991,1765054232401,-10598.28792322,0.00015296,2]
[396566992,1765054232418,-2277.80797151,0.00015296,2]
[396566994,1765054232430,-915.89127462,0.00015296,2]
[396566995,1765054232440,-352.59879329,0.00015296,2]
[396566996,1765054232452,-4502.7494144,0.00015296,2]
[396566998,1765054232464,-825.596331,0.00015296,2]
[396566999,1765054232475,-265.411747,0.00015296,2]
[396567002,1765054232489,-1079.14363337,0.00015296,2]
[396567004,1765054232500,-333.32,0.00015296,2]
[396567107,1765054238196,-21944.90291159,0.00015296,2]
[396567108,1765054238205,-159.26,0.00015324,2]
[396567109,1765054238214,-200.0,0.00015405,2]
[396567110,1765054238223,-1176.45,0.00015415,2]
[396567112,1765054238232,-9411.02,0.00015425,2]
[396567113,1765054238240,-200.0,0.00015811,2]
[396567114,1765054238250,-1000.0,0.00015935,3]
[396567115,1765054238259,-212.28,0.00016131,2]
[396567116,1765054238268,-257.0,0.0001615,2]
[396567117,1765054238277,-1000.0,0.00016199,3]
[396567118,1765054238286,-387.14,0.000162,2]
[396567119,1765054238294,-240.0,0.000162,2]
[396567120,1765054238303,-150.0,0.000162,2]
[396567121,1765054238311,-150.0,0.000162,2]
[396567122,1765054238320,-257.0,0.00016234,2]
[396567123,1765054238333,-168.0,0.00016276,2]
[396567124,1765054238343,-257.0,0.00016311,2]
[396567125,1765054238353,-168.0,0.00016317,2]
[396567126,1765054238361,-322.6107,0.00016327,2]
[396567127,1765054238372,-249.62468867,0.00016337,2]
[396567128,1765054238381,-235.64637648,0.00016337,2]
[396567129,1765054238390,-500.0,0.00016337,2]
[396567130,1765054238401,-286.11756491,0.00016337,2]
[396567131,1765054238410,-500.0,0.00016337,2]
[396567133,1765054238419,-217.33814892,0.00016338,2]
[396567135,1765054238428,-2017.22395203,0.00016338,2]
[396567136,1765054238438,-274.92539485,0.00016338,2]
[396567137,1765054238447,-1467.5644,0.00016338,2]
[396567138,1765054238456,-110905.4557,0.00016338,2]
[396567139,1765054238466,-2500.0,0.00016338,2]
[396567141,1765054238475,-168.0,0.00016393,2]
[396567143,1765054238484,-1000.0,0.000164,2]
[396567145,1765054238494,-1000.0,0.000164,2]
[396567146,1765054238504,-1000.0,0.000164,2]
[396567148,1765054238513,-1000.0,0.000164,3]
[396567149,1765054238522,-1000.0,0.000164,2]
[396567151,1765054238532,-1000.0,0.000164,2]
[396567153,1765054238541,-1000.0,0.000164,2]
[396567155,1765054238551,-452.0,0.000164,2]
[396567156,1765054238560,-265.0,0.000164,2]
[396567157,1765054238569,-1000.0,0.000164,2]
[396567158,1765054238578,-150.0,0.000164,2]
[396567159,1765054238588,-500.0,0.000164,2]
[396567161,1765054238597,-150.0,0.000164,2]
[396567163,1765054238607,-217.33814887,0.000164,2]
[396567164,1765054238616,-2017.22395197,0.000164,2]
[396567165,1765054238625,-688.49839244,0.00016417,2]
[396567166,1765054238634,-274.92539485,0.00016418,2]
[396567167,1765054238643,-250.0,0.00016427,2]
[396567168,1765054238652,-150.0,0.00016427,2]
[396567169,1765054238661,-500.0,0.00016427,2]
[396567170,1765054238671,-150.0,0.00016427,2]
[396567171,1765054238680,-150.0,0.00016427,2]
[396567172,1765054238689,-150.0,0.00016427,2]
[396567173,1765054238698,-200.0,0.00016427,2]
[396567174,1765054238707,-150.0,0.00016427,2]
[396567175,1765054238716,-150.0,0.00016427,2]
[396567176,1765054238725,-169.87557669,0.00016427,2]
[396567177,1765054238735,-3470.02,0.00016428,2]
[396567178,1765054238744,-3470.02,0.00016428,2]
[396567179,1765054238753,-151.0,0.00016435,2]
[396567180,1765054238763,-501.79460066,0.00016438,2]
[396567181,1765054238773,-500.0,0.00016438,2]
[396567182,1765054238783,-1630.68,0.00016438,2]
[396567183,1765054238792,-500.0,0.00016438,2]
[396567184,1765054238801,-503.26039617,0.00016438,2]
[396567185,1765054238811,-500.0,0.00016438,2]
[396567186,1765054238821,-500.0,0.00016438,2]
[396567187,1765054238830,-500.48,0.00016438,2]
[396567188,1765054238839,-517.05,0.00016438,2]
[396567189,1765054238848,-500.0,0.00016438,2]
[396567190,1765054238857,-723.26,0.00016438,2]
[396567191,1765054238867,-500.0,0.00016438,2]
[396567192,1765054238876,-1683.95,0.00016438,2]
[396567193,1765054238886,-1740.25,0.00016438,2]
[396567194,1765054238895,-1793.49,0.00016438,2]
[396567195,1765054238904,-1957.96,0.00016438,2]
[396567196,1765054238914,-241.58904581,0.00016438,2]
[396567197,1765054238923,-500.0,0.00016438,2]
[396567198,1765054238933,-500.0,0.00016438,2]
[396567199,1765054238942,-500.0,0.00016438,2]